bitfinex/quotes_ETHUSD_20240719
["timestamp","ask_amount","ask_price","bid_price","bid_amount"]
[1721410871114,2.09694687,3500.0,3499.1,2.3894]
[1721410871334,1.79726863,3499.6,3499.2,0.05412263]
[1721410871652,3.16645148,3500.2,3499.2,0.05412263]
[1721410871653,1.79726863,3499.8,3499.2,0.05412263]
[1721410871856,1.79726863,3499.7,3499.2,0.05412263]
[1721410872017,1.79726863,3499.8,3499.2,0.05412263]
[1721410872443,1.79725028,3499.8,3499.2,0.39838686]
[1721410872759,1.79725028,3499.7,3499.3,0.55]
[1721410872941,1.79724886,3499.8,3499.4,0.05408596]
[1721410873932,5.09679034,3500.1,3499.4,0.05408596]
[1721410873933,1.79724886,3499.7,3499.4,0.05408596]
[1721410874465,1.79724886,3499.8,3499.4,0.05408596]
[1721410874771,1.79724886,3500.1,3499.5,2.3753]
[1721410874983,1.79724886,3499.7,3499.5,2.3753]
[1721410875282,2.09679034,3499.9,3499.6,0.05222254]
[1721410875564,2.93493226,3499.9,3499.6,0.05222254]
[1721410875764,1.7,3500.2,3499.6,0.05222254]
[1721410875967,2.967922,3499.9,3499.1,2.2757]
[1721410876143,2.47796244,3499.4,3499.1,2.2757]
[1721410876339,2.47796244,3499.4,3499.0,0.99911971]
[1721410876542,2.47796244,3499.3,3499.0,0.99911971]
[1721410876961,2.47796244,3499.2,3499.0,0.99911971]
[1721410877136,2.09755025,3499.1,3499.0,0.99911971]
[1721410877334,2.47796244,3499.3,3499.0,0.99911971]
[1721410878574,2.47777613,3499.3,3499.0,0.99911971]
[1721410878736,2.09720147,3499.1,3499.0,0.99911971]
[1721410879130,2.47777613,3499.3,3499.0,0.99911971]
[1721410879376,3.02555374,3499.3,3499.0,0.99911971]
[1721410879667,2.09746075,3499.1,3499.0,0.99911971]
[1721410879885,2.09746075,3499.2,3499.0,0.99911971]
[1721410880073,2.09746075,3499.1,3499.0,0.99911971]
[1721410880272,2.39172554,3499.1,3499.0,1.54911971]
[1721410880570,2.39162605,3499.1,3499.0,0.99911971]
[1721410880777,0.29426479,3499.1,3499.0,0.99911971]
[1721410880985,2.39162517,3499.1,3499.0,0.99911971]
[1721410881189,0.29426479,3499.1,3499.0,0.99911971]
[1721410881356,2.39151147,3499.1,3499.0,0.99911971]
[1721410881756,0.29426479,3499.1,3499.0,0.99911971]
[1721410882664,0.57146888,3499.1,3499.0,0.99911971]
[1721410883107,3.57146888,3499.1,3499.0,0.99911971]
[1721410883458,6.04761742,3499.1,3499.0,0.99911971]
[1721410884502,3.57146888,3499.1,3499.0,0.99911971]
[1721410884814,6.04761742,3499.1,3499.0,0.99911971]
[1721410885007,6.04700479,3499.1,3499.0,0.99911971]
[1721410885220,6.04692199,3499.1,3499.0,0.99911971]
[1721410885510,6.0469136,3499.1,3499.0,0.99911971]
[1721410887299,3.57146888,3499.1,3499.0,0.99911971]
[1721410888092,0.29426479,3499.1,3499.0,3.43321971]
[1721410888823,2.08890258,3499.1,3499.0,3.43321971]
[1721410889115,0.29426479,3499.1,3499.0,3.43321971]
[1721410889331,2.08890258,3499.1,3499.0,3.43321971]
[1721410889505,0.29426479,3499.1,3499.0,3.43321971]
[1721410889693,2.08895192,3499.1,3499.0,3.43321971]
[1721410890014,0.29426479,3499.1,3499.0,3.43321971]
[1721410890219,0.29426479,3499.1,3499.0,0.99911971]
[1721410890395,2.62711142,3499.1,3499.0,0.99911971]
[1721410890716,0.5330931,3499.1,3499.0,1.03311107]
[1721410890917,2.627184,3499.1,3499.0,0.99911971]
[1721410891220,0.5330931,3499.1,3499.0,0.99911971]
[1721410891403,0.29426479,3499.1,3499.0,0.99911971]
[1721410891914,2.38842012,3499.1,3499.0,0.99911971]
[1721410892115,2.3884181,3499.1,3499.0,0.99911971]
[1721410892317,0.29426479,3499.1,3499.0,0.99911971]
[1721410895008,3.29426479,3499.1,3499.0,0.99911971]
[1721410895193,6.85258368,3499.1,3499.0,0.99911971]
[1721410896106,0.29426479,3499.1,3499.0,0.99911971]
[1721410896311,2.38742302,3499.1,3499.0,0.99911971]
[1721410896530,2.38742302,3499.1,3499.0,1.03004739]
[1721410896531,2.08816898,3499.1,3499.0,1.03004739]
[1721410896686,0.29426479,3499.1,3499.0,1.03004739]
[1721410897008,0.29426479,3499.1,3499.0,0.99911971]
[1721410897618,2.92616532,3499.1,3499.0,0.99911971]
[1721410897781,0.83300709,3499.1,3499.0,0.99911971]
[1721410898122,2.53300709,3499.1,3499.0,1.03004739]
[1721410898500,8.39087709,3499.1,3499.0,0.99911971]
[1721410898981,10.8639855,3499.1,3499.0,0.99911971]
[1721410899176,8.39087709,3499.1,3499.0,0.99911971]
[1721410899426,10.8639855,3499.1,3499.0,0.99911971]
[1721410899583,13.7218555,3499.1,3499.0,0.99911971]
[1721410899983,11.24874709,3499.1,3499.0,0.99911971]
[1721410900184,14.14100426,3499.1,3499.0,0.99911971]
[1721410900419,17.10892626,3499.1,3499.0,0.99911971]
[1721410900793,22.46419626,3499.1,3499.0,0.99911971]
[1721410901007,25.32206626,3499.1,3499.0,0.99911971]
[1721410901215,4.55864,3498.2,3497.1,2.4375]
[1721410901424,1.79375887,3497.7,3497.2,0.24375]
[1721410901733,1.79375887,3497.7,3497.2,0.27159443]
[1721410901916,0.29417988,3497.6,3497.2,0.24375]
[1721410902291,2.08793875,3497.6,3497.1,2.4375]
[1721410902485,1.79375887,3497.5,3496.7,0.1512355]
[1721410902689,0.29417988,3497.6,3496.7,0.1512355]
[1721410902690,1.79375887,3497.4,3496.7,0.1512355]
[1721410903513,1.79375887,3497.5,3496.8,0.02791787]
[1721410903735,1.79375887,3497.5,3496.7,0.1512355]
[1721410903906,1.79375887,3497.5,3496.7,0.40350905]
[1721410904260,3.29417988,3497.6,3496.7,0.40350905]
[1721410904261,0.29417988,3497.6,3496.7,0.40350905]
[1721410904413,1.79173277,3497.4,3496.7,0.40350905]
[1721410904612,4.79173277,3497.5,3496.7,0.40350905]
[1721410904815,1.79104089,3497.5,3496.7,0.40350905]
[1721410905136,1.79104089,3497.5,3496.8,0.27750091]
[1721410905521,2.08522077,3497.6,3496.8,0.27750091]
[1721410906025,0.29417988,3497.6,3496.8,0.27750091]
[1721410906245,0.29417988,3497.6,3496.9,0.55]
[1721410907338,0.29417988,3497.6,3496.7,0.1512355]
[1721410907675,0.29417988,3497.6,3496.8,0.25227355]
[1721410907980,0.29417988,3497.6,3496.9,2.3449]
[1721410908469,0.29417988,3497.6,3497.0,0.02788115]
[1721410908635,0.29417988,3497.6,3497.0,0.57788115]
[1721410908846,0.29417988,3497.6,3497.1,2.4162]
[1721410909104,1.78987836,3498.8,3497.3,2.4162]
[1721410909387,0.29408431,3498.3,3497.4,0.88014509]
[1721410909547,1.78987836,3498.9,3497.4,0.88014509]
[1721410909749,1.78987836,3498.8,3497.4,0.85233737]
[1721410909942,0.29410288,3498.2,3497.4,0.85233737]
[1721410910158,1.78987836,3498.7,3497.5,0.35464311]
[1721410910358,0.29410027,3498.1,3497.4,0.55]
[1721410910588,0.29410027,3498.1,3497.5,0.02778937]
[1721410910901,0.29412592,3498.1,3497.5,0.02778937]
[1721410914310,0.29412592,3498.1,3497.6,2.2527]
[1721410914507,0.29412592,3498.1,3497.5,0.02778937]
[1721410914508,0.29412592,3498.1,3497.8,2.2527]
[1721410914813,0.29412592,3498.1,3497.9,0.3080153]
[1721410915120,0.29412592,3498.1,3498.0,0.55]
[1721410915421,0.29412592,3498.1,3498.0,0.57664242]
[1721410922504,0.29412592,3498.1,3498.0,0.02664242]
[1721410922712,0.29412592,3498.1,3498.0,0.035038]
[1721410922921,0.29412592,3498.1,3497.8,2.2527]
[1721410923098,0.29412592,3498.1,3498.0,0.03211817]
[1721410923307,0.29412592,3498.1,3497.9,0.0321411]
[1721410923501,0.29412592,3498.1,3498.0,0.03211817]
[1721410923901,0.29412592,3498.1,3497.9,0.55]
[1721410924202,0.29412592,3498.1,3498.0,0.03211817]
[1721410925210,0.29412592,3498.1,3497.8,1.42198817]
[1721410925532,0.29412592,3498.1,3497.8,1.19671817]
[1721410927808,0.29412592,3498.1,3497.0,5.653]
[1721410927993,0.29412592,3498.1,3497.1,0.55]
[1721410928331,0.29412592,3498.1,3497.2,2.417]
[1721410928518,0.29412592,3498.1,3497.3,1.412]
[1721410928839,0.29412592,3498.1,3497.9,2.4628]
[1721410929040,0.29412592,3498.1,3498.0,0.55]
[1721410931106,0.29412592,3498.1,3497.9,2.4628]
[1721410931336,0.29412592,3498.1,3497.4,2.4628]
[1721410931514,0.29412592,3498.1,3497.5,0.33248]
[1721410931937,2.08992649,3498.1,3497.5,0.33248]
[1721410934173,1.79580057,3498.0,3496.8,2.259]
[1721410934484,1.79580057,3497.7,3496.8,2.259]
[1721410934638,1.79580057,3497.6,3496.8,2.259]
[1721410935052,0.29370851,3497.6,3496.8,2.259]
[1721410935365,0.29370851,3497.6,3496.9,0.24102355]
[1721410935366,1.79626229,3497.5,3496.9,0.24102355]
[1721410935534,0.29370851,3497.6,3496.8,2.259]
[1721410935535,1.79626229,3497.4,3496.8,2.259]
[1721410935943,1.79626229,3497.3,3496.7,0.1512355]
[1721410936128,1.79626229,3497.0,3496.7,0.1512355]
[1721410936459,1.79626229,3496.9,3496.7,0.1512355]
[1721410937129,2.85936,3497.3,3496.7,0.1512355]
[1721410937329,1.79644679,3496.9,3496.7,0.1512355]
[1721410938283,1.79613472,3496.9,3496.7,0.1512355]
[1721410938423,1.79613472,3497.0,3496.7,0.1512355]
[1721410938632,0.285936,3497.2,3496.7,0.1512355]
[1721410938848,1.79586454,3497.0,3496.7,0.1512355]
[1721410941168,1.79586454,3497.1,3496.7,0.1512355]
[1721410941341,6.15280851,3497.6,3496.7,0.1512355]
[1721410941547,1.79522208,3497.2,3496.7,0.1512355]
[1721410942049,1.79522208,3497.1,3496.7,0.1512355]
[1721410942233,2.09442576,3497.4,3496.7,0.1512355]
[1721410942234,1.79522208,3497.0,3496.7,0.1512355]
[1721410943248,2.85926,3497.4,3496.7,0.1512355]
[1721410943249,1.79522208,3496.9,3496.7,0.1512355]
[1721410943569,1.79522208,3496.8,3496.7,0.1512355]
[1721410944487,2.4786,3497.2,3496.7,0.1512355]
[1721410944661,1.79472036,3496.8,3496.7,0.1512355]
[1721410945500,0.68246592,3496.8,3496.7,0.1512355]
[1721410945796,5.63605634,3496.8,3496.7,0.1512355]
[1721410945970,8.63605634,3496.8,3496.7,0.1512355]
[1721410946303,6.54221592,3496.8,3496.7,0.1512355]
[1721410946965,3.68246592,3496.8,3496.7,0.1512355]
[1721410947168,0.68246592,3496.8,3496.7,0.1512355]
[1721410948684,2.47535348,3496.8,3496.7,0.1512355]
[1721410950310,0.68246592,3496.8,3496.7,0.1512355]
[1721410950663,2.47492384,3496.8,3496.7,0.1512355]
[1721410950859,2.47489652,3496.8,3496.7,0.1512355]
[1721410951116,0.68246592,3496.8,3496.7,0.1512355]
[1721410953675,0.29360984,3496.8,3496.7,0.1512355]
[1721410954195,0.29360984,3496.8,3496.7,0.19300129]
[1721410954699,1.79046749,3497.4,3496.7,0.19300129]
[1721410954902,2.2589,3497.6,3496.7,0.1512355]
[1721410954903,0.29361566,3497.0,3496.7,0.1512355]
[1721410955509,1.79046749,3497.9,3496.8,2.47584335]
[1721410955676,2.2589,3498.0,3496.8,2.47584335]
[1721410955677,0.293677,3497.6,3496.8,2.47584335]
[1721410956077,0.293677,3497.6,3496.8,0.04174335]
[1721410956282,1.79046749,3497.5,3496.8,0.04174335]
[1721410956806,1.79046749,3497.4,3496.7,0.1512355]
[1721410957101,0.20841445,3497.3,3496.7,0.1512355]
[1721410957260,0.20841445,3497.3,3496.8,0.04202819]
[1721410957680,0.20841445,3497.3,3496.7,0.1512355]
[1721410958913,1.79048409,3497.5,3496.7,0.1512355]
[1721410959115,0.293677,3497.6,3496.8,2.4397]
[1721410959343,3.0,3497.5,3496.8,2.4397]
[1721410959478,0.293677,3497.6,3496.9,0.04204643]
[1721410961013,0.293677,3497.6,3496.7,0.1512355]
[1721410961014,2.574077,3497.6,3496.7,0.1512355]
[1721410961223,3.0,3497.5,3497.0,0.04203755]
[1721410961514,3.0,3497.5,3496.7,0.1512355]
[1721410961826,3.0,3497.5,3497.1,0.04200695]
[1721410961978,3.73649854,3497.5,3496.7,0.1512355]
[1721410962180,0.293677,3497.6,3497.2,0.04197636]
[1721410962418,0.293677,3497.6,3496.7,0.1512355]
[1721410962823,0.293677,3497.6,3496.8,0.04209875]
[1721410964222,2.08508065,3497.6,3496.8,0.04209875]
[1721410966926,0.293677,3497.6,3496.8,0.04209875]
[1721410967107,2.41610959,3497.6,3496.8,0.04209875]
[1721410967683,2.41610959,3497.6,3496.7,0.1512355]
[1721410967998,1.79306489,3497.4,3496.9,0.04198403]
[1721410968192,1.79306489,3497.4,3497.0,0.04195343]
[1721410968397,1.79306489,3497.4,3496.7,0.1512355]
[1721410968602,1.79306489,3497.4,3496.8,0.04201463]
[1721410968785,0.54161096,3497.3,3496.8,0.04201463]
[1721410968986,1.79306489,3497.4,3496.7,0.1512355]
[1721410969329,1.79306489,3497.3,3496.8,0.04199835]
[1721410969530,0.29394288,3497.3,3496.8,0.04199835]
[1721410969820,0.29394288,3497.3,3496.7,0.1512355]
[1721410969995,0.29394288,3497.3,3496.9,0.04196775]
[1721410970202,0.29394288,3497.3,3496.8,0.04199835]
[1721410970403,0.29394288,3497.3,3497.0,0.04193715]
[1721410970610,0.29394288,3497.3,3497.1,0.04190655]
[1721410970810,0.29394288,3497.3,3496.7,0.1512355]
[1721410971146,0.29394288,3497.3,3496.8,0.04199835]
[1721410971290,2.08786791,3497.3,3496.8,0.04199835]
[1721410971495,2.08786791,3497.3,3496.7,0.1512355]
[1721410971697,2.08786791,3497.3,3496.9,0.04197589]
[1721410971926,2.08786791,3497.3,3496.8,0.04200649]
[1721410972091,2.08786791,3497.3,3497.0,0.04194529]
[1721410972298,2.08786791,3497.3,3496.9,0.04197589]
[1721410972529,2.08786791,3497.3,3497.1,0.04192012]
[1721410972719,2.08786791,3497.3,3497.0,0.04195072]
[1721410973034,2.08786791,3497.3,3497.1,0.04192012]
[1721410973337,0.29394288,3497.3,3496.7,0.1512355]
[1721410973541,2.08934147,3497.3,3496.7,0.1512355]
[1721410973704,0.29394288,3497.3,3496.8,0.04201191]
[1721410974046,0.29394288,3497.3,3496.7,0.1512355]
[1721410974227,1.79539859,3497.5,3496.9,2.4371]
[1721410974535,3.0,3497.6,3497.0,0.35998546]
[1721410974536,1.79539859,3497.6,3497.0,0.35998546]
[1721410975301,1.79539859,3497.5,3497.0,0.35998546]
[1721410976596,3.0,3497.8,3497.0,0.04195072]
[1721410976800,1.79694007,3497.2,3497.0,0.04195072]
[1721410977035,1.79694007,3497.1,3497.0,0.04195072]
[1721410977252,1.79694412,3497.1,3497.0,0.04195072]
[1721410977401,1.79694412,3497.1,3496.7,0.1512355]
[1721410977402,5.39064056,3497.4,3496.7,0.1512355]
[1721410977604,1.79754653,3497.0,3496.8,0.04201191]
[1721410977812,1.79754653,3497.0,3496.7,0.1512355]
[1721410978012,1.79754653,3497.0,3496.8,0.04201191]
[1721410978247,1.79754653,3497.0,3496.7,0.1512355]
[1721410978425,1.79754653,3497.0,3496.8,0.04201191]
[1721410978627,1.79754653,3497.1,3496.7,0.1512355]
[1721410978962,1.79754653,3497.1,3496.7,0.39677905]
[1721410979146,1.79754653,3497.2,3496.7,0.39677905]
[1721410979657,1.79754653,3497.2,3496.8,0.55]
[1721410979865,1.797894,3497.3,3496.8,0.55]
[1721410980026,3.0,3497.4,3496.8,0.55]
[1721410980027,1.797894,3497.4,3496.8,0.55]
[1721410980728,3.0,3497.6,3496.8,0.8750979]
[1721410980729,1.797894,3497.2,3496.8,0.8750979]
[1721410980926,1.797894,3497.1,3496.7,0.1512355]
[1721410982112,3.0,3497.4,3496.7,0.1512355]
[1721410982334,1.79823152,3497.1,3496.7,0.1512355]
[1721410982925,2.09793677,3497.5,3496.7,0.1512355]
[1721410982926,1.79823152,3497.2,3496.7,0.1512355]
[1721410983533,1.79823152,3497.3,3496.7,0.1512355]
[1721410983758,1.79823152,3497.2,3496.7,0.39677905]
[1721410984459,1.79823152,3497.1,3496.7,0.39677905]
[1721410984762,1.79823152,3497.2,3496.7,0.39677905]
[1721410985120,1.79823152,3497.3,3496.7,0.39677905]
[1721410985346,1.79810202,3497.3,3496.7,0.39677905]
[1721410985523,1.79810202,3497.4,3496.8,0.8200979]
[1721410986655,1.79810202,3497.2,3496.8,0.8200979]
[1721410987776,1.79810202,3497.3,3496.8,0.8200979]
[1721410988616,1.79751327,3497.3,3496.8,0.8200979]
[1721410989046,3.0,3497.6,3496.8,0.8200979]
[1721410989219,1.79765093,3497.3,3496.8,0.8200979]
[1721410990169,1.79765093,3497.3,3496.7,0.1512355]
[1721410990319,1.79765093,3496.9,3496.7,0.1512355]
[1721410990520,0.29450273,3497.2,3496.7,0.1512355]
[1721410990521,1.79765093,3497.0,3496.7,0.1512355]
[1721410991753,1.7980312,3497.1,3496.7,0.1512355]
[1721410992358,1.7980312,3497.0,3496.7,0.1512355]
[1721410993335,1.7980312,3497.1,3496.8,2.4213]
[1721410993517,1.7980312,3497.1,3496.8,2.67855355]
[1721410994358,1.7980312,3497.2,3496.8,2.67855355]
[1721410994945,1.79896947,3497.2,3496.8,2.67855355]
[1721410995145,1.79896947,3497.4,3496.8,2.67855355]
[1721410995459,2.09879771,3497.7,3496.8,2.67855355]
[1721410995460,1.79896947,3497.3,3496.9,0.28297891]
[1721410995660,1.79896947,3497.4,3496.9,0.28297891]
[1721410996332,1.79896947,3497.3,3496.9,0.28297891]
[1721410996762,1.79896947,3497.2,3496.9,0.28297891]
[1721410996966,1.79896947,3497.2,3496.8,2.4213]
[1721410997267,1.79896947,3497.1,3496.7,0.1512355]
[1721410998034,3.0,3498.0,3496.7,0.1512355]
[1721410998362,1.79988359,3497.1,3496.7,0.1512355]
[1721410999832,1.79988359,3497.0,3496.7,0.1512355]
[1721411000231,1.79988359,3496.9,3496.7,0.1512355]
[1721411001351,1.80074369,3496.9,3496.7,0.1512355]
[1721411001701,2.10086764,3497.2,3496.7,0.1512355]
[1721411001702,1.80074369,3496.8,3496.7,0.1512355]
[1721411001864,1.80072604,3496.9,3496.7,0.1512355]
[1721411002265,1.80072604,3496.8,3496.7,0.1512355]
[1721411002493,1.80072604,3496.9,3496.7,0.1512355]
[1721411003259,1.80072604,3496.9,3496.7,0.39642905]
[1721411004584,1.80035337,3496.9,3496.7,0.39642905]
[1721411005275,1.80035337,3496.9,3496.7,0.1512355]
[1721411005895,2.10041227,3497.1,3496.7,0.1512355]
[1721411006897,1.79950515,3496.8,3496.7,0.1512355]
[1721411007797,1.79954655,3496.8,3496.7,0.1512355]
[1721411008307,1.79954655,3496.9,3496.7,0.1512355]
[1721411008507,1.79954655,3496.8,3496.7,0.1512355]
[1721411009178,1.79954655,3496.9,3496.7,0.1512355]
[1721411009365,1.79954655,3496.9,3496.7,0.39642905]
[1721411009561,1.79954655,3497.0,3496.7,0.39642905]
[1721411011067,2.3788,3497.8,3496.7,0.39642905]
[1721411011267,1.79937541,3497.0,3496.7,0.1512355]
[1721411012007,1.79937541,3496.9,3496.7,0.1512355]
[1721411012206,0.29537389,3497.7,3496.7,0.1512355]
[1721411012207,1.79937541,3496.8,3496.7,0.1512355]
[1721411012376,6.26180263,3497.7,3496.7,0.1512355]
[1721411012570,2.09918871,3497.0,3496.7,0.1512355]
[1721411012906,2.09918871,3497.1,3496.7,0.1512355]
[1721411013470,1.79948587,3496.8,3496.7,0.1512355]
[1721411014273,1.16406026,3497.6,3496.7,0.1512355]
[1721411014508,1.7995657,3496.8,3496.7,0.1512355]
[1721411014812,1.79954136,3496.8,3496.7,0.1512355]
[1721411015304,1.16406026,3497.6,3496.7,2.5351355]
[1721411015305,1.79954136,3496.9,3496.7,2.5351355]
[1721411015865,1.79954136,3497.0,3496.7,2.5351355]
[1721411016073,1.79954136,3496.9,3496.7,2.5351355]
[1721411016384,1.79954136,3496.8,3496.7,2.5351355]
[1721411016601,1.79954136,3496.9,3496.7,2.5351355]
[1721411016814,1.79954136,3496.9,3496.7,2.78864905]
[1721411017914,1.79954136,3496.8,3496.7,2.78864905]
[1721411018072,1.79954136,3496.8,3496.7,2.5351355]
[1721411018972,5.34522874,3497.8,3496.7,2.5351355]
[1721411018973,0.28086779,3498.9,3496.7,2.5351355]
[1721411019178,1.80136811,3499.6,3499.5,11.58765]
[1721411019503,3.47401221,3501.6,3499.5,11.58765]
[1721411019504,3.47401221,3502.2,3499.7,5.659]
[1721411019814,1.7,3502.4,3499.8,1.54368032]
[1721411020020,1.7,3502.4,3499.9,5.2984]
[1721411020311,1.87,3502.3,3500.0,1.69924]
[1721411020926,1.87,3502.3,3500.1,2.644]
[1721411021104,1.87,3502.3,3500.2,0.55]
[1721411021413,1.87,3502.3,3500.5,2.644]
[1721411021621,1.87,3502.3,3500.6,0.55]
[1721411021836,0.187,3502.2,3500.6,0.55]
[1721411024104,0.187,3502.2,3500.7,5.712]
[1721411024306,0.187,3502.2,3500.8,0.55]
[1721411024631,4.7,3503.3,3500.9,5.7128]
[1721411024831,1.7,3503.0,3500.9,5.7128]
[1721411025040,5.2687,3503.5,3500.9,5.7128]
[1721411025041,1.7,3503.4,3501.0,0.55]
[1721411025202,1.7,3503.4,3501.1,5.7125]
[1721411025391,1.7,3503.4,3501.2,0.55]
[1721411025592,0.69687,3503.3,3501.3,5.7122]
[1721411025910,1.7,3503.0,3501.3,5.7122]
[1721411027639,1.7,3503.0,3501.4,0.55]
[1721411027931,1.7,3503.0,3501.5,5.7118]
[1721411028117,1.7,3503.0,3501.6,0.55]
[1721411028320,0.17,3502.9,3501.7,5.7115]
[1721411029225,0.69687,3503.3,3501.8,2.70110778]
[1721411029425,2.4285,3504.0,3501.9,9.11678]
[1721411029627,2.4285,3504.0,3502.0,2.85549]
[1721411029816,2.4285,3504.0,3502.1,9.17341634]
[1721411030017,2.4285,3504.0,3502.1,8.62341634]
[1721411030326,2.4285,3504.0,3502.2,0.55]
[1721411030501,0.24285,3503.9,3502.3,6.68494067]
[1721411031097,2.4285,3504.0,3502.4,0.55]
[1721411031098,2.07558727,3504.0,3502.4,0.55]
[1721411031302,3.0,3504.6,3502.5,5.7102]
[1721411031537,1.19,3504.7,3502.6,0.60708556]
[1721411031751,1.19,3504.7,3502.7,6.28121375]
[1721411032054,1.19,3504.7,3502.8,0.55]
[1721411032271,1.19,3504.7,3502.9,5.7096]
[1721411032449,1.19,3504.7,3503.0,0.60707559]
[1721411032627,1.19,3504.7,3503.1,5.7092]
[1721411032950,1.19,3504.7,3503.2,1.18162756]
[1721411033143,0.1310624,3504.7,3503.3,5.7089]
[1721411033318,0.1310624,3504.7,3503.4,0.55]
[1721411033513,0.1310624,3504.7,3503.5,5.7086]
[1721411036089,5.11483,3504.4,3503.5,5.7086]
[1721411036247,1.7,3504.2,3503.5,5.7086]
[1721411040088,4.55372,3504.2,3503.5,5.7086]
[1721411040285,3.0,3504.1,3503.5,5.7086]
[1721411040886,5.8538,3504.1,3503.5,5.7086]
[1721411041127,1.040744,3504.0,3503.5,5.7086]
[1721411042383,2.2612,3504.4,3503.5,5.7086]
[1721411042384,3.0,3504.3,3503.5,5.7086]
[1721411042584,4.55371,3504.2,3503.5,5.7086]
[1721411042812,2.85389,3504.0,3503.5,5.7086]
[1721411043009,3.0,3503.9,3503.5,5.7086]
[1721411043420,3.0,3504.1,3503.5,5.7086]
[1721411043626,0.755371,3504.0,3503.5,5.7086]
[1721411043802,3.609251,3504.0,3503.5,5.7086]
[1721411044004,3.0,3503.9,3503.5,5.7086]
[1721411044400,0.755371,3504.0,3503.5,5.7086]
[1721411044728,5.7084,3503.6,3503.5,3.36637414]
[1721411044889,8.82634,3503.6,3503.5,1.1221094]
[1721411045248,11.82634,3503.6,3503.5,1.1221094]
[1721411045408,8.97214,3503.6,3502.2,7.39]
[1721411045591,3.0,3503.5,3501.5,2.3414]
[1721411047031,0.29519215,3503.4,3501.6,0.55]
[1721411047191,0.64131322,3503.3,3501.6,1.57814]
[1721411047824,3.64131322,3503.3,3501.6,1.57814]
[1721411048639,3.0,3503.2,3501.6,1.57814]
[1721411048805,0.64131322,3503.3,3501.5,2.3414]
[1721411049125,3.64131322,3503.3,3501.5,2.3414]
[1721411049335,0.64131322,3503.3,3501.5,2.3414]
[1721411050543,4.5547,3503.0,3501.3,7.39]
[1721411050732,0.740923,3502.9,3501.4,0.55]
[1721411050909,0.740923,3502.9,3501.1,0.55]
[1721411052609,0.740923,3502.9,3500.4,7.39]
[1721411052610,1.7,3502.5,3500.4,7.39]
[1721411052806,2.85535,3502.2,3500.3,2.3091]
[1721411053059,2.85559,3501.9,3499.7,2.3637]
[1721411053213,1.94011265,3501.8,3499.7,2.3637]
[1721411053426,2.85598,3501.5,3499.7,2.3637]
[1721411053625,4.1212,3502.0,3499.7,2.3637]
[1721411053822,2.8556,3501.9,3499.7,2.3637]
[1721411054129,0.7262335,3501.8,3499.8,0.23637]
[1721411055167,2.4212,3502.0,3499.9,0.05713033]
[1721411055326,2.4212,3502.0,3499.8,0.23637]
[1721411056025,2.4212,3502.0,3499.9,0.05712925]
[1721411056425,2.4212,3502.0,3500.0,0.55]
[1721411056637,5.27671,3502.0,3500.0,0.55]
[1721411056840,5.27671,3502.0,3499.8,3.23637]
[1721411056841,1.7,3501.8,3499.8,3.23637]
[1721411057045,2.85581,3501.7,3499.8,3.23637]
[1721411057443,3.0,3501.6,3499.8,3.23637]
[1721411057647,3.0,3501.6,3499.9,5.77023607]
[1721411057967,3.29528875,3501.9,3499.9,5.7131]
[1721411058142,0.29528875,3501.9,3499.9,5.77022924]
[1721411058344,3.29528875,3501.9,3499.9,5.77022924]
[1721411058764,3.29528875,3501.9,3500.0,0.55]
[1721411059058,3.29528875,3501.9,3500.1,5.7141]
[1721411059463,3.29528875,3501.9,3500.2,0.55]
[1721411059977,3.29528875,3501.9,3500.3,5.7138]
[1721411060178,3.29528875,3501.9,3500.4,0.55]
[1721411060874,3.29528875,3501.9,3500.3,5.7138]
[1721411061166,2.85567,3501.8,3500.3,5.7138]
[1721411061336,3.0,3501.7,3500.3,5.7138]
[1721411061843,4.99528875,3501.9,3500.3,5.7138]
[1721411062046,2.85567,3501.8,3500.3,5.7138]
[1721411062340,3.88286188,3501.8,3500.3,5.7138]
[1721411062545,3.0,3501.7,3500.3,5.7138]
[1721411062742,4.02719188,3501.8,3500.3,5.7138]
[1721411063456,2.8561,3501.3,3500.3,5.7138]
[1721411063640,3.28561,3501.2,3500.3,5.7138]
[1721411063844,6.14177,3501.2,3500.3,5.7138]
[1721411064047,2.85643,3500.9,3500.3,5.7138]
[1721411064246,1.7,3500.6,3500.3,5.7138]
[1721411064465,2.85678,3500.5,3500.3,5.7138]
[1721411064687,3.39157572,3500.4,3500.3,0.7139]
[1721411064994,2.85715,3500.0,3498.8,0.58947968]
[1721411065200,2.85715,3500.0,3498.6,0.58947968]
[1721411065409,5.16524,3500.1,3498.7,0.99419303]
[1721411065410,3.0,3499.9,3498.7,0.99419303]
[1721411065556,3.0,3499.9,3498.4,0.58947968]
[1721411065753,0.53081,3499.8,3498.5,2.48556557]
[1721411065959,0.53081,3499.8,3498.6,0.99422623]
[1721411066169,0.53081,3499.8,3498.4,0.26531686]
[1721411066670,0.53081,3499.8,3498.0,2.97377968]
[1721411066866,0.53081,3499.8,3498.1,2.485593]
[1721411067071,2.85738,3499.7,3498.0,2.3843]
[1721411067371,2.85738,3499.7,3497.5,1.17927334]
[1721411067372,2.85754,3499.6,3497.5,0.58947968]
[1721411067571,2.4864,3499.2,3497.4,2.2581]
[1721411067884,2.4864,3499.2,3496.9,0.58947968]
[1721411067885,3.562333,3499.1,3496.9,0.58947968]
[1721411068092,3.562333,3499.1,3497.0,0.99454693]
[1721411068093,2.85812,3498.8,3497.0,0.99454693]
[1721411068253,4.5583,3498.6,3496.7,0.1512355]
[1721411068460,1.7,3498.0,3496.7,0.1512355]
[1721411068680,3.9602,3498.0,3496.7,0.1512355]
[1721411068875,3.39602,3497.9,3496.7,0.1512355]
[1721411071192,0.39602,3497.9,3496.7,0.1512355]
[1721411071362,3.0,3498.5,3496.7,0.1512355]
[1721411071363,3.0,3498.5,3496.8,0.55]
[1721411071565,1.7,3498.2,3496.7,0.1512355]
[1721411071772,2.85885,3498.0,3496.7,0.1512355]
[1721411072002,3.0,3497.9,3496.7,0.1512355]
[1721411072270,5.85886,3497.9,3496.7,0.1512355]
[1721411072477,0.585886,3497.8,3496.7,0.1512355]
[1721411074173,3.0,3498.0,3496.7,0.1512355]
[1721411075017,3.0,3498.1,3496.7,0.1512355]
[1721411075504,4.7,3498.2,3496.7,0.1512355]
[1721411075803,3.0,3498.4,3496.7,0.1512355]
[1721411076009,3.0,3498.5,3496.7,0.1512355]
[1721411076175,1.7,3498.2,3496.7,0.1512355]